Cogmind - Beta 15 @@@ ROGUE MODE // 2025.06.30 @ 14:45:00 Player: satan5 Result: Destroyed by G-50 Soldier with Heavy Laser Performance ------------- Evolutions (5) 2500 Regions Visited (21) 4200 Robots Destroyed (266) 1330 Value Destroyed (10250) 10250 Prototype IDs (45) 900 Alien Tech Used (1) 200 Bonus (6764) 6764 TOTAL SCORE: 26144 Bonus ------- High Alert Combat Kills 1415 Follower Combat Kills 1967 Entered Garrisons 800 Used RIF Installer 2500 Met Data Miner 300 Friendly Fire -218 Cogmind --------- Core Integrity 0/1000 Matter 204/300 Energy 100/100 System Corruption 8% Temperature Cool (9) Movement Core (50) Location -5/Extension Parts ------- > --- POWER (1) -------- (None) > --- PROPULSION (6) --- (None) > --- UTILITY (8) ------ (None) > --- WEAPON (3) ------- (None) > --- INVENTORY (5) ---- Improved Gravmag System Antigrav System Relay Coupler [Heavy] (15) Long-range Proton Cannon Power Sword Peak State ------------ > --- POWER ------------ Neutrino Core > --- PROPULSION ------- Armored Medium Treads Armored Medium Treads Multireflex Exoskeleton Armored Huge Wheel > --- UTILITY ---------- Advanced Heat Sink Large Storage Unit Improved Sensor Array Improved Signal Interpreter Improved Target Analyzer Improved Weapon Cycler Hacking Suite Advanced Hacking Suite > --- WEAPON ----------- HERF Cannon KE Penetrator Enhanced Coil Gun > --- INVENTORY -------- Light Nuclear Core Micro Fission Core Micro Fission Core Medium Treads Medium Treads Carbon-fiber Leg Antigrav System Antigrav System Advanced Heat Sink Relay Coupler [Heavy] High-powered Shock Rifle Tesla Rifle Improved Arc Projector Improved Remote Datajack Scythe [Rating: 97] Favorites ----------- Power Neutrino Core Engine Cooled Ion Engine Power Core Neutrino Core Reactor Light Antimatter Reactor Propulsion Improved Airjet Treads Medium Treads Leg Carbon-fiber Leg Wheel Armored Huge Wheel Hover Unit Improved Airjet Flight Unit Surge Thruster Utility Large Storage Unit Device Advanced Heat Sink Storage Large Storage Unit Processor Core Analyzer Hackware Advanced Hacking Suite Protection Heavy Insulated Plating Weapon KE Penetrator Energy Gun Gatling Laser Energy Cannon Ion Cannon Ballistic Gun KE Penetrator Ballistic Cannon Mass Driver Launcher Missile Launcher Special Weapon Improved Remote Datajack Impact Weapon Power Maul Slashing Weapon Phasing Sabre Piercing Weapon Heavy Pick Build | -11 -10 -9 -8 -8 -8 -8 -7 -7 -7 -7 -7 -7 -6 -6 -6 -6 -6 -6 -6 -5 -5 ------- Run | Yrd Mat Mat Mat Gar Mat Gar Fac Was Fac Low Low Dat Pro Fac Was Fac Gar Fac Gar Fac Ext Slots Evolved 10 | . . 2 2 . . . 2 . . . . . . 2 . . . . . 2 . Power . | . . . . . . . . . . . . . . . . . . . . . . Propulsion 4 | . . 2 . . . . 1 . . . . . . . . . . . . 1 . Utility 5 | . . . 2 . . . 1 . . . . . . 2 . . . . . . . Weapon 1 | . . . . . . . . . . . . . . . . . . . . 1 . Parts Attached 248 | 7 3 8 11 23 7 5 4 . 31 . 6 . . 5 2 23 28 5 3 52 25 Power 22 | 1 . 1 1 . 1 . . . 2 . . . . 1 . 3 1 . 1 7 3 Engine 9 | 1 . 1 1 . 1 . . . 2 . . . . 1 . 1 1 . . . . Core 12 | . . . . . . . . . . . . . . . . 2 . . . 7 3 Reactor 1 | . . . . . . . . . . . . . . . . . . . 1 . . Propulsion 77 | 2 . 3 5 10 2 2 4 . 9 . 2 . . . . 7 13 . 1 12 5 Treads 11 | . . . . . . . . . . . . . . . . . 4 . . 4 3 Leg 40 | 2 . 3 5 10 2 2 . . . . 1 . . . . . 9 . . 4 2 Wheel 4 | . . . . . . . . . . . . . . . . . . . . 4 . Hover 21 | . . . . . . . 4 . 9 . 1 . . . . 7 . . . . . Flight 1 | . . . . . . . . . . . . . . . . . . . 1 . . Utility 78 | 1 3 1 1 7 1 . . . 9 . 3 . . 2 . 12 9 2 1 19 7 Device 40 | . 1 . . 5 . . . . 6 . 2 . . 1 . 6 2 2 . 10 5 Storage 6 | 1 2 . . . . . . . 1 . . . . . . 1 . . . 1 . Processor 17 | . . 1 . 2 1 . . . 2 . . . . 1 . 5 1 . . 3 1 Hackware 11 | . . . 1 . . . . . . . . . . . . . 6 . 1 2 1 Protection 4 | . . . . . . . . . . . 1 . . . . . . . . 3 . Artifact . | . . . . . . . . . . . . . . . . . . . . . . Weapon 71 | 3 . 3 4 6 3 3 . . 11 . 1 . . 2 2 1 5 3 . 14 10 Energy Gun 19 | . . . 2 1 . 1 . . 7 . 1 . . . . . 1 2 . 4 . Energy Cannon 16 | . . . 2 1 3 2 . . 1 . . . . . . . 2 . . 2 3 Ballistic Gun 23 | 3 . 3 . 2 . . . . 1 . . . . 2 1 . 1 . . 7 3 Ballistic Cannon 1 | . . . . . . . . . . . . . . . . . . . . 1 . Launcher 2 | . . . . 1 . . . . 1 . . . . . . . . . . . . Special Weapon 4 | . . . . . . . . . . . . . . . . . 1 . . . 3 Impact Weapon 2 | . . . . . . . . . 1 . . . . . . 1 . . . . . Slashing Weapon 2 | . . . . 1 . . . . . . . . . . . . . . . . 1 Piercing Weapon 2 | . . . . . . . . . . . . . . . 1 . . 1 . . . Special Melee Weapon . | . . . . . . . . . . . . . . . . . . . . . . Unidentified Prototypes 21 | . . 1 2 . . . . . 9 1 . . . 2 1 1 . 1 . 3 . Parts Lost 93 | . . 1 4 13 . . . . 3 1 . . . . . 12 18 . 9 18 14 Power 8 | . . 1 . . . . . . . . . . . . . . 2 . 1 3 1 Propulsion 39 | . . . 2 7 . . . . 2 . . . . . . 4 9 . 4 5 6 Utility 20 | . . . 1 2 . . . . . 1 . . . . . 7 3 . 1 3 2 Weapon 26 | . . . 1 4 . . . . 1 . . . . . . 1 4 . 3 7 5 Highest Loss Streak 9 | . . 1 1 5 . . . . 2 1 . . . . . 5 5 . 9 6 8 To Critical Strikes 1 | . . . . . . . . . . . . . . . . . . . . . 1 Average Backups 13 | 1 8 14 14 14 13 13 11 10 14 15 15 15 15 15 14 14 12 14 12 8 14 Power 1 | . 1 1 . 1 1 1 1 1 1 1 1 1 1 1 . . 1 3 2 1 2 Propulsion 3 | . 1 2 4 5 5 5 3 2 3 6 6 6 6 6 6 5 . 1 1 1 3 Utility 2 | . 3 2 1 2 1 1 1 1 1 1 1 1 1 1 1 1 4 5 4 3 3 Weapon 5 | . 3 9 8 5 5 5 5 5 6 6 6 6 6 6 6 6 4 4 4 1 4 Tool/Special . | . . . . . . . . . . . . . . . . . . . . . . Unused Backups 67 | . 1 9 2 4 2 4 . . 13 . . . . . 1 1 5 . 4 6 15 Power 10 | . . . 1 . . . . . 1 . . . . . 1 . . . 1 1 5 Propulsion 13 | . . . . 2 1 1 . . 4 . . . . . . . . . . . 5 Utility 17 | . 1 2 . 1 . . . . 2 . . . . . . . 4 . 3 1 3 Weapon 26 | . . 7 1 1 1 3 . . 5 . . . . . . 1 1 . . 4 2 Tool/Special 1 | . . . . . . . . . 1 . . . . . . . . . . . . Average Slot Usage (%) 91 | . 91 99 98 98 100 100 77 84 93 97 98 100 100 92 93 91 93 98 79 65 95 Engine 5 | . 14 10 9 9 9 9 7 7 7 7 7 7 7 6 6 2 5 6 3 . . Core 1 | . . . . . . . . . . . . . . . . 3 . . . 4 5 Treads 5 | . . . . . . . . . . . . . . . . . 7 . . 5 17 Leg 14 | . 28 43 35 35 36 36 3 . . . . . . . . . 10 31 24 6 9 Hover 8 | . . . . . . . 20 30 31 37 35 35 35 31 31 27 7 . . . . Device 9 | . 5 6 7 8 2 9 7 7 6 7 12 14 14 12 12 12 11 23 19 11 6 Storage 6 | . 14 11 9 9 9 9 7 7 7 7 7 7 7 6 6 6 6 6 4 4 5 Processor 15 | . . 4 9 15 24 18 15 15 22 22 21 21 21 24 25 26 15 12 9 3 15 Hackware 6 | . . . 9 2 . . . . . . . . . . . . 14 6 5 5 14 Energy Gun 3 | . . . . . 1 . . . 9 7 13 14 14 11 11 9 1 3 6 4 . Energy Cannon 3 | . . . 1 9 12 17 15 15 2 . . . . . . . 6 3 1 . 1 Ballistic Gun 7 | . 28 22 16 6 2 . . . . . . . . . . . 2 4 . 8 12 Peak Build Rating 97 | 6 8 17 24 40 40 46 49 50 60 59 64 64 64 74 74 78 67 66 68 97 97 Average Rating 57 | 4 6 13 22 31 37 42 47 49 52 58 62 64 64 69 70 70 58 63 50 65 91 On Entrance 45 | . 6 8 17 19 35 40 46 49 50 59 54 64 64 64 70 70 61 55 65 2 96 Naked Turns 50 | . . . . . . . . . . . . . . . . . . . 28 19 3 Heaviest Build 77 | 14 30 33 38 41 41 43 43 43 43 42 48 43 43 44 44 45 54 48 46 77 58 Greatest Support 106 | 20 20 40 40 63 63 70 47 47 47 45 45 45 45 45 45 49 90 78 78 56 106 Greatest Overweight (x) 5 | 1 1 . 1 1 . . . . 1 . 1 . . . . 2 5 . 2 3 3 Average Overweight (x) . | . . . . . . . . . . . . . . . . . . . . 1 . Largest Inventory Capacity 15 | 8 15 15 15 15 15 15 15 15 15 15 15 15 15 15 15 15 15 15 15 15 15 Average Capacity 14 | 7 11 15 15 15 15 15 15 15 15 15 15 15 15 15 15 15 15 15 12 14 14 Most Carried 15 | 3 15 15 15 15 15 15 15 11 15 15 15 15 15 15 15 15 15 15 15 15 15 Average Carried 13 | 2 8 14 14 14 14 14 10 10 14 15 14 15 15 15 14 14 12 14 12 9 14 Final Capacity 15 | 8 15 15 15 15 15 15 15 15 15 15 15 15 15 15 15 15 15 15 5 15 5 Final Carried 15 | 3 13 15 15 15 15 15 10 11 15 15 15 15 15 15 15 15 14 15 5 15 5 Class Distribution -------------------- 30% | Scavenger-Mutant 25% | Mutant 7% | Commander-Gunner 6% | Bothacker-Mutant 6% | Hacker-Gunner 4% | Botlord-Mutant 4% | Hacker-Skirmisher 3% | Scout 3% | Commander-Mutant Dominant Class ---------------- Mutant | -10/Materials Mutant | -9/Materials Scavenger-Mutant | -8/Materials Scavenger-Mutant | -8/Garrison Scavenger-Mutant | -8/Materials Mutant | -8/Garrison Scavenger-Mutant | -7/Factory Scavenger-Mutant | -7/Waste Scavenger-Mutant | -7/Factory Mutant | -7/Lower Caves Mutant | -7/Lower Caves Mutant | -7/Data Miner Mutant | -6/Proximity Caves Mutant | -6/Factory Mutant | -6/Waste Mutant | -6/Factory Botlord-Mutant | -6/Garrison Bothacker-Mutant | -6/Factory Bothacker-Mutant | -6/Garrison Scavenger-Tank | -5/Factory Commander-Gunner | -5/Extension Resources | -11 -10 -9 -8 -8 -8 -8 -7 -7 -7 -7 -7 -7 -6 -6 -6 -6 -6 -6 -6 -5 -5 ----------- Run | Yrd Mat Mat Mat Gar Mat Gar Fac Was Fac Low Low Dat Pro Fac Was Fac Gar Fac Gar Fac Ext Matter Collected 7168 | 228 229 169 462 469 155 80 . . 669 16 184 . . 90 60 324 996 75 6 1415 1541 Remotely . | . . . . . . . . . . . . . . . . . . . . . . Salvage Created 11694 | 52 238 416 584 1368 467 758 50 . 999 70 44 . . 455 174 986 1112 75 6 1583 2257 Parts 586 | 9 18 31 32 83 26 38 3 . 49 3 3 . . 17 . 36 42 7 3 79 107 Haulers Intercepted 18 | . 1 2 2 . 1 . . . 4 . . . . 1 . 4 . . . 2 1 Recyclers Shooed 5 | . . . . . 1 . . . . . . . . . . 1 . . . 3 . Parts Field Recycled . | . . . . . . . . . . . . . . . . . . . . . . Retrieved Matter . | . . . . . . . . . . . . . . . . . . . . . . Parts Self-Destructed 11 | . . . . . . . . . . 1 10 . . . . . . . . . . Prevented 1 | . . . . . . . . . . . 1 . . . . . . . . . . Kills | -11 -10 -9 -8 -8 -8 -8 -7 -7 -7 -7 -7 -7 -6 -6 -6 -6 -6 -6 -6 -5 -5 ------- Run | Yrd Mat Mat Mat Gar Mat Gar Fac Was Fac Low Low Dat Pro Fac Was Fac Gar Fac Gar Fac Ext Combat Hostiles Destroyed 186 | . 8 6 8 31 7 15 1 . 12 3 1 . . 6 1 12 25 2 1 21 26 Melee 1 | . . . . . . . . . . . . . . . . 1 . . . . . Guns 112 | . 8 6 8 5 1 . . . 9 . 1 . . 6 1 9 16 2 . 19 21 Cannons 53 | . . . . 15 6 14 1 . 2 . . . . . . . 9 . . 2 4 AOE 13 | . . . . 9 . . . . . 3 . . . . . . . . 1 . . Classes Destroyed 22 | 1 4 3 3 3 1 1 . . . . . . . . 1 3 . . . 1 1 Worker 10 | . . 1 . . . . . . 4 . . . . 1 . 1 . . . 2 1 Builder 11 | . . . 1 . 2 . . . 1 . . . . . . 2 . . . 3 2 Tunneler 5 | 3 . . . . . . . . . . . . . . . . . 1 . 1 . Hauler 18 | . 1 2 2 . 1 . . . 4 . . . . 1 . 4 . . . 2 1 Recycler 8 | . . . . . 1 . . . 1 . . . . 1 . . . . . 2 3 Mechanic 1 | . . . . . . . . . . . . . . . . . . . . 1 . Operator 8 | . . 1 2 . 1 . . . 2 . . . . . . . . . . 1 1 Watcher 16 | . 2 . 2 2 1 . . . 4 . . . . 1 . 2 . . . 1 1 Swarmer 47 | . 6 . 1 3 3 . . . 1 . . . . 4 . . 11 2 . 9 7 Cutter 2 | . . . . . . . . . . . . . . . . 1 . . 1 . . Saboteur 3 | . . . . 3 . . . . . . . . . . . . . . . . . Grunt 54 | . 2 3 4 8 2 6 . . 6 3 . . . 1 . 3 8 . . 4 4 Brawler 4 | . . . 1 . . . . . 2 . . . . . . . . . . . 1 Duelist 3 | . . . . 2 1 . . . . . . . . . . . . . . . . Sentry 42 | . . 3 . 11 1 6 . . 2 . . . . 1 . 2 5 . . 2 9 Demolisher 1 | . . . . . . . . . . . . . . . . . . . . . 1 Specialist 4 | . . . . 2 . . . . . . . . . . . . 1 . . . 1 Hunter 6 | . . . 2 2 . . . . . . . . . . . 2 . . . . . Programmer 14 | . . . . . . 3 1 . 1 . . . . . . 2 . . . 5 2 Heavy 1 | . . . . . . . . . . . . . . . . 1 . . . . . Behemoth 4 | . . . . . . . . . . . . . . . . 1 1 . . 1 1 Compactor 1 | . . . . . . . . . . . . . . . 1 . . . . . . Thug 3 | . . . . . . . . . . . 1 . . . . . . . . . 2 Best Kill Streak 10 | 3 4 3 3 5 10 5 1 . 8 3 1 . . 4 1 3 3 2 1 6 7 Combat Bots Only 6 | . 3 2 3 5 5 5 1 . 6 3 1 . . 3 1 2 3 2 1 6 5 Max Kills in Single Turn 3 | 1 1 1 1 3 2 1 1 . 2 1 1 . . 2 1 2 2 1 1 2 2 Gunslinging 1 | . . . . . . . . . . . . . . . . . 1 . . . . Exploded 3 | . . . . 3 . . . . . 1 . . . . . . . . 1 . . Melee 1 | . . . . . . . . . . . . . . . . 1 . . . . . Uniques/NPCs Destroyed . | . . . . . . . . . . . . . . . . . . . . . . Combat | -11 -10 -9 -8 -8 -8 -8 -7 -7 -7 -7 -7 -7 -6 -6 -6 -6 -6 -6 -6 -5 -5 -------- Run | Yrd Mat Mat Mat Gar Mat Gar Fac Was Fac Low Low Dat Pro Fac Was Fac Gar Fac Gar Fac Ext Hostile Shots Fired 1322 | . 40 30 75 119 40 28 2 . 74 10 6 . . 19 . 91 210 8 121 282 167 Missed 423 | . 11 11 25 31 5 8 1 . 25 3 6 . . 13 . 42 66 4 41 68 63 Hits 899 | . 29 19 50 88 35 20 1 . 49 7 . . . 6 . 49 144 4 80 214 104 Melee 23 | . . . 2 6 2 . . . . . . . . . . . . . 12 . 1 Projectile 876 | . 29 19 48 82 33 20 1 . 49 7 . . . 6 . 49 144 4 68 214 103 AOE 18 | . . . . . . . . . . . . . . . . 2 . . 1 . 15 Critical Strikes 33 | . . . 1 4 2 1 1 . . . . . . . . 4 1 . 4 6 9 Part Disruptions 2 | . . . . . . 1 . . . . . . . . . . . . . . 1 Damage Taken 16578 | . 250 264 732 1435 440 302 14 . 664 161 . . . 89 34 1594 2098 57 913 4531 3000 Core 2370 | . 43 14 26 202 74 58 . . 107 . . . . . . 137 338 . 365 559 447 Absorbed by Shields 143 | . . . . 4 . . . . . . . . . . . . . . . . 139 Ignored by Resistances 178 | . . . . . . . . . . . . . . . . . . . 67 111 . Regen/Repaired (Parts) 838 | . . . . . . . . . 132 . . . . . 11 136 . . . 559 . Core Remaining (%) 66 | 100 82 96 . . . 34 . . . . . . 84 . . . . . 1 . . Volleys Fired 760 | 7 34 29 53 78 21 26 1 . 51 5 2 . . 15 11 34 129 17 3 117 127 Largest 3 | 2 2 2 2 2 2 2 2 . 2 1 2 . . 2 2 2 2 2 2 3 3 Hottest 313 | 40 40 46 83 120 150 160 160 . 160 36 160 . . 160 160 160 180 105 160 313 195 Shots Fired 1482 | 14 68 58 101 143 42 52 2 . 98 5 4 . . 30 22 69 201 20 4 266 283 Gun 1037 | 14 68 58 94 35 6 . . . 67 . 4 . . 30 22 69 100 18 2 249 201 Cannon 362 | . . . 7 103 36 52 2 . 31 . . . . . . . 66 2 . 17 46 Launcher 11 | . . . . 5 . . . . . 5 . . . . . . . . 1 . . Special 72 | . . . . . . . . . . . . . . . . . 35 . 1 . 36 Kinetic 699 | 14 68 58 94 32 3 . . . . . . . . . . . 49 3 . 177 201 Thermal 620 | . . . 7 103 36 52 2 . 98 . 4 . . 30 22 69 117 17 2 61 . Explosive 11 | . . . . 5 . . . . . 5 . . . . . . . . 1 . . Electromagnetic 80 | . . . . 3 3 . . . . . . . . . . . . . . 28 46 Robot Hit Streak 26 | 5 7 21 22 20 13 8 9 . 16 3 4 . . 26 12 10 21 10 4 17 13 Robot Miss Streak 7 | 2 4 3 3 5 4 3 . . 7 . 3 . . 5 2 6 4 3 1 4 4 Penetration Max 1 | . . . . . . . . . . . . . . . . . . . . 1 1 Secondary Targets 22 | . 1 1 2 . . . . . 3 . . . . . . 2 4 . . 4 5 Max Gunslinging Chain 1 | . 1 1 1 . . . . . 1 . . . . . . 1 1 . . 1 1 Shots Hit Robots 1011 | 9 34 46 66 92 23 32 1 . 78 3 4 . . 26 22 70 137 10 3 168 187 Core Hits 541 | 3 16 16 31 41 18 19 1 . 57 8 4 . . 29 14 51 64 6 6 77 80 Critical Kills 10 | . . . . 1 . 1 . . . . . . . . . 1 . . . . 7 Critical Parts Destroyed 20 | . 1 . . . . . . . 1 . . . . . . 8 . . . . 10 Critical Strikes 35 | . 1 . . 1 . 1 . . 1 . . . . . . 9 . . . . 22 Meltdown 2 | . . . . 1 . 1 . . . . . . . . . . . . . . . Destroy 21 | . 1 . . . . . . . . . . . . . . . . . . . 20 Corrupt 2 | . . . . . . . . . . . . . . . . . . . . . 2 Smash 10 | . . . . . . . . . 1 . . . . . . 9 . . . . . Melee Attacks 69 | . . . . 8 . . . . 10 1 . . . . . 34 . 5 . . 11 Impact 40 | . . . . . . . . . 5 1 . . . . . 34 . . . . . Slashing 24 | . . . . 8 . . . . 5 . . . . . . . . . . . 11 Piercing 5 | . . . . . . . . . . . . . . . . . . 5 . . . Sneak Attacks 10 | . . . . . . . . . 3 . . . . . . 4 . 2 . . 1 Combat Hostiles . | . . . . . . . . . . . . . . . . . . . . . . Follow-up Attacks . | . . . . . . . . . . . . . . . . . . . . . . Damage Inflicted 24775 | 104 420 659 943 2586 741 856 32 . 2287 436 78 . . 699 657 2322 2525 375 261 3941 4853 Guns 15582 | 104 420 659 920 402 66 . . . 1307 . 78 . . 699 657 1350 1546 89 46 3471 3768 Cannons 6012 | . . . 23 1565 675 856 32 . 433 . . . . . . . 979 32 . 408 1009 Explosions 1379 | . . . . 570 . . . . 158 436 . . . . . . . . 215 . . Melee 1740 | . . . . 49 . . . . 389 . . . . . . 972 . 254 . . 76 Ramming 62 | . . . . . . . . . . . . . . . . . . . . 62 . Kinetic 9170 | 104 420 659 920 340 26 . . . . . . . . . . . 623 . . 2310 3768 Thermal 11011 | . . . 23 1630 675 856 32 . 1740 . 78 . . 699 657 1350 1902 121 46 1202 . Explosive 1314 | . . . . 505 . . . . 158 436 . . . . . . . . 215 . . Electromagnetic 1478 | . . . . 62 40 . . . . . . . . . . . . . . 367 1009 Impact 1178 | . . . . . . . . . 206 . . . . . . 972 . . . . . Slashing 308 | . . . . 49 . . . . 183 . . . . . . . . . . . 76 Piercing 254 | . . . . . . . . . . . . . . . . . . 254 . . . Highest Corruption 16 | . 3 1 . . . . . 13 13 . . . . . . 16 16 16 16 10 12 Average Corruption 9 | . 2 1 . . . . . 7 9 . . . . . . 12 16 16 16 7 7 Corruption Purged 20 | . . . . . . . . . 15 . . . . . . . . . . . 5 Corruption Blocked . | . . . . . . . . . . . . . . . . . . . . . . Effects 336 | . 2 1 . . . . . 4 59 . . . . . . 15 77 15 9 46 108 Message Errors 86 | . 1 . . . . . . . 13 . . . . . . 7 18 2 4 10 31 Matter Fused 76 | . . . . . . . . 1 13 . . . . . . 2 17 4 1 13 25 Heat Flow Errors 35 | . . . . . . . . . 8 . . . . . . . 9 2 . 7 9 Energy Discharges 39 | . . 1 . . . . . . 5 . . . . . . 1 12 3 1 4 12 Parts Rejected 5 | . . . . . . . . 2 1 . . . . . . . 1 . . . 1 Parts Fused 5 | . . . . . . . . . . . . . . . . . 1 1 . 1 2 Data Loss (minor) 37 | . 1 . . . . . . 1 7 . . . . . . 1 11 2 1 4 9 Data Loss (major) 18 | . . . . . . . . . 8 . . . . . . 1 1 . . 1 7 Misfires 15 | . . . . . . . . . 2 . . . . . . 2 3 . . 3 5 Alerts 4 | . . . . . . . . . . . . . . . . . . . . 1 3 Misdirections 3 | . . . . . . . . . . . . . . . . 1 . . 2 . . Weapon Failures 13 | . . . . . . . . . 2 . . . . . . . 4 1 . 2 4 Overload Shots 5 | . . . . . . . . . . . . . . . . . . . . 5 . Overflow Damage 910 | . . . . 26 35 17 . . 165 5 . . . . . 598 7 19 7 9 22 Projectiles 125 | . . . . . 35 17 . . 35 . . . . . . . 7 . . 9 22 Explosions 38 | . . . . 26 . . . . . 5 . . . . . . . . 7 . . Melee 747 | . . . . . . . . . 130 . . . . . . 598 . 19 . . . Knockbacks 7 | . . . . . . . . . . . . . . . . 3 . . . 4 . Impact 4 | . . . . . . . . . . . . . . . . 3 . . . 1 . Kinetic 3 | . . . . . . . . . . . . . . . . . . . . 3 . Secondary . | . . . . . . . . . . . . . . . . . . . . . . Self-Inflicted Damage 257 | . . . . 35 . . . . . . . . . . . . . . 37 185 . Shots 4 | . . . . 1 . . . . . . . . . . . . . . 1 2 . Rammed . | . . . . . . . . . . . . . . . . . . . . . . Targets Rammed 22 | . . . . . . . . . . . . . . . . . . . . 22 . Kicked 22 | . . . . . . . . . . . . . . . . . . . . 22 . Crushed . | . . . . . . . . . . . . . . . . . . . . . . Highest Temperature 459 | . 2 . 16 171 357 126 24 . 459 15 12 . . 9 9 202 367 138 78 452 205 Average Temperature 86 | . 2 . 8 58 135 38 16 . 99 10 8 . . 3 3 61 107 34 36 122 55 Received Heat Transfer 3334 | . 24 90 135 522 117 135 . . 207 36 . . . 6 . 204 510 . 147 906 295 Effects 5 | . . . . . 2 . . . 2 . . . . . . . 1 . . . . Energy Bleed 2 | . . . . . 1 . . . . . . . . . . . 1 . . . . Interference 2 | . . . . . . . . . 2 . . . . . . . . . . . . Damage (minor) 1 | . . . . . 1 . . . . . . . . . . . . . . . . Siege Activations . | . . . . . . . . . . . . . . . . . . . . . . Martial Activations . | . . . . . . . . . . . . . . . . . . . . . . Shielding Activations . | . . . . . . . . . . . . . . . . . . . . . . Robots Disrupted . | . . . . . . . . . . . . . . . . . . . . . . Combat Hostiles . | . . . . . . . . . . . . . . . . . . . . . . Robots Corrupted 5 | . . . . . . . . . . . . . . . . 4 . . . . 1 Combat Hostiles 3 | . . . . . . . . . . . . . . . . 2 . . . . 1 Parts Fried 8 | . . . . . . . . . . . . . . . . 2 . . . 1 5 Impact Corruptions 13 | . . . . . . . . . 1 . . . . . . 12 . . . . . Robots Melted 5 | . . . . 2 . 1 . . 1 . . . . . . 1 . . . . . Combat Hostiles 4 | . . . . 2 . 1 . . 1 . . . . . . . . . . . . Parts Melted 45 | . . . . 7 2 3 . . 11 . . . . 7 1 6 4 . . 4 . Heat Transferred 20612 | . . . 37 2516 999 1286 50 . 3725 . 175 . . 1575 1500 3050 3340 250 87 2022 . Parts Sabotaged . | . . . . . . . . . . . . . . . . . . . . . . Parts Stolen . | . . . . . . . . . . . . . . . . . . . . . . Parts Stripped . | . . . . . . . . . . . . . . . . . . . . . . Power Chain Reactions 1 | . . . . 1 . . . . . . . . . . . . . . . . . Alert | -11 -10 -9 -8 -8 -8 -8 -7 -7 -7 -7 -7 -7 -6 -6 -6 -6 -6 -6 -6 -5 -5 ------- Run | Yrd Mat Mat Mat Gar Mat Gar Fac Was Fac Low Low Dat Pro Fac Was Fac Gar Fac Gar Fac Ext Maximum Alert Level 4 | . . . . 3 2 3 2 . 1 . . . . . . 3 4 3 2 1 3 Low Security (%) 41 | 100 100 100 100 7 . . . 100 85 . . . . 100 100 9 . . . 52 38 Level 1 12 | . . . . 27 . 4 . . 14 . . . . . . 10 . . 21 47 4 Level 2 21 | . . . . 38 100 33 100 . . . . . . . . 23 12 64 78 . 36 Level 3 22 | . . . . 26 . 61 . . . . . . . . . 56 73 35 . . 20 Level 4 1 | . . . . . . . . . . . . . . . . . 13 . . . . Level 5 . | . . . . . . . . . . . . . . . . . . . . . . High Security . | . . . . . . . . . . . . . . . . . . . . . . Max Security . | . . . . . . . . . . . . . . . . . . . . . . Peak Influence 1349 | 15 77 84 133 952 588 936 517 180 310 . . . . 137 40 839 1349 723 443 372 1040 Initial 707 | . 3 . 31 79 464 365 491 180 84 . . . . . 40 . 581 707 443 224 172 Average 395 | 2 22 30 18 546 479 744 498 151 114 . . . . 67 16 610 880 685 427 216 409 Influence Increases 9858 | 15 237 199 355 1023 304 611 46 . 678 70 45 . . 227 30 1644 1088 86 94 889 2217 Destroy 0b10 Robot/C 4780 | . 160 120 160 620 140 440 20 . 240 60 . . . 120 . 540 620 40 20 420 1060 Destroy 0b10 Robot/NC 445 | 15 15 20 35 10 30 . . . 80 . . . . 20 . 55 . 5 . 65 95 Destroy Leader 716 | . 46 44 58 20 44 20 10 . 54 10 . . . 24 . 144 30 10 10 96 96 Allied During Kill 1250 | . . . . . . 35 . . . . . . . . . 462 28 . 2 . 723 Successful Hack 354 | . . . 25 47 38 51 16 . 41 . . . . 33 . 23 . 30 . 36 14 Disable Machine 330 | . . . 15 . 15 . . . 90 . . . . . . 60 . . . 105 45 Anti-Garrison Action 600 | . . . . 200 . 50 . . . . . . . . . . 350 . . . . Destroy Structure 513 | . 1 . 2 66 7 15 . . 23 . . . . . 30 75 30 1 17 122 124 Partial Spotted 120 | . . . . . . . . . 60 . . . . . . 45 15 . . . . Lose Combat Pursuer 750 | . 15 15 60 60 30 . . . 90 . 45 . . 30 . 240 15 . 45 45 60 Influence Decreases 9039 | 10 242 125 306 194 694 237 465 397 775 43 80 15 . 110 147 814 569 802 300 963 1751 Entered New Map 3168 | . 2 . 43 44 488 197 445 337 36 9 10 15 . . 77 . 249 642 190 203 181 Time Decay 3600 | 10 240 115 207 . 206 . 20 60 559 24 70 . . 110 70 464 . 160 . 580 705 Lost Part 917 | . . 10 37 130 . . . . 30 10 . . . . . 120 180 . 90 180 130 Lost Ally 890 | . . . . 20 . 40 . . . . . . . . . 230 140 . 20 . 440 Purge Threat 464 | . . . 19 . . . . . 150 . . . . . . . . . . . 295 Squads Dispatched 41 | . 1 1 4 . . . 1 . 7 . . . . 1 . 14 . . . 6 6 Investigation 7 | . . . 1 . . . 1 . 1 . . . . . . 3 . . . 1 . Extermination 12 | . . . . . . . . . 4 . . . . . . 4 . . . 4 . Reinforcement 13 | . 1 1 2 . . . . . 2 . . . . 1 . 4 . . . 1 1 Assault 8 | . . . . . . . . . . . . . . . . 3 . . . . 5 Garrison 1 | . . . 1 . . . . . . . . . . . . . . . . . . Intercept . | . . . . . . . . . . . . . . . . . . . . . . Searches Triggered . | . . . . . . . . . . . . . . . . . . . . . . Data Miner Redirects 7 | . . . . . . . . . . . . . . . . 3 . . . . 4 Construction Impeded 2 | . . . . . . . . . . . . . . . . 1 . . . . 1 Haulers Reinforced 3 | . . . . . . . . . . . . . . 1 . 1 . . . 1 . Active Scanning Responses . | . . . . . . . . . . . . . . . . . . . . . . Cargo Convoy Interrupts . | . . . . . . . . . . . . . . . . . . . . . . Alert ID Control Effect 3 | . . . . . . . . . . . . . . . . . 3 . . . . Stealth | -11 -10 -9 -8 -8 -8 -8 -7 -7 -7 -7 -7 -7 -6 -6 -6 -6 -6 -6 -6 -5 -5 --------- Run | Yrd Mat Mat Mat Gar Mat Gar Fac Was Fac Low Low Dat Pro Fac Was Fac Gar Fac Gar Fac Ext Distress Signals 9 | . . 1 1 1 1 . . . . . . . . 1 . 1 . 1 . 1 1 Communications Jammed . | . . . . . . . . . . . . . . . . . . . . . . Distress Signals . | . . . . . . . . . . . . . . . . . . . . . . Times Spotted 389 | . 17 11 22 31 12 20 1 5 24 3 7 . 3 14 6 47 46 3 13 30 74 Peak Tracking Total 17 | . 5 3 7 5 4 7 1 6 5 3 6 . 3 4 3 5 6 2 12 6 17 Tactical Retreats 32 | . 1 1 3 2 2 . . . 3 . 2 . . 2 . 10 1 . 1 1 3 Traps | -11 -10 -9 -8 -8 -8 -8 -7 -7 -7 -7 -7 -7 -6 -6 -6 -6 -6 -6 -6 -5 -5 ------- Run | Yrd Mat Mat Mat Gar Mat Gar Fac Was Fac Low Low Dat Pro Fac Was Fac Gar Fac Gar Fac Ext Traps Triggered 27 | . 2 1 2 2 . . 2 . 5 . . . . 1 . 6 2 . . 3 1 Indirectly . | . . . . . . . . . . . . . . . . . . . . . . Trap Hack Attempts . | . . . . . . . . . . . . . . . . . . . . . . Triggered . | . . . . . . . . . . . . . . . . . . . . . . Disarmed . | . . . . . . . . . . . . . . . . . . . . . . Reprogrammed . | . . . . . . . . . . . . . . . . . . . . . . Reused . | . . . . . . . . . . . . . . . . . . . . . . Traps Extracted . | . . . . . . . . . . . . . . . . . . . . . . Installed . | . . . . . . . . . . . . . . . . . . . . . . Triggered . | . . . . . . . . . . . . . . . . . . . . . . Machines | -11 -10 -9 -8 -8 -8 -8 -7 -7 -7 -7 -7 -7 -6 -6 -6 -6 -6 -6 -6 -5 -5 ---------- Run | Yrd Mat Mat Mat Gar Mat Gar Fac Was Fac Low Low Dat Pro Fac Was Fac Gar Fac Gar Fac Ext Machines Disabled 29 | . . . 1 2 1 . . . 6 . . . . . . 4 4 . . 7 4 Max in Single Turn 4 | . . . 1 1 1 . . . 4 . . . . . . 1 1 . . 3 1 Garrison Access 7 | . . . . . . . . . 4 . . . . 1 . 1 . . . 1 . Garrison Relay 5 | . . . . 1 . . . . . . . . . . . . 4 . . . . Machines Repaired . | . . . . . . . . . . . . . . . . . . . . . . Machines Dismantled 1 | . . . . . . . . . . . . . . . . . . . . . 1 Machines Sabotaged . | . . . . . . . . . . . . . . . . . . . . . . Overloaded Fab Kills . | . . . . . . . . . . . . . . . . . . . . . . Hacking | -11 -10 -9 -8 -8 -8 -8 -7 -7 -7 -7 -7 -7 -6 -6 -6 -6 -6 -6 -6 -5 -5 --------- Run | Yrd Mat Mat Mat Gar Mat Gar Fac Was Fac Low Low Dat Pro Fac Was Fac Gar Fac Gar Fac Ext Machines Accessed 90 | . 4 1 4 4 5 4 2 . 20 . 1 4 . 8 . 16 1 3 . 7 6 Terminals 48 | . 2 . 3 4 3 4 1 . 10 . 1 . . 4 . 5 1 1 . 3 6 Fabricators 5 | . . . . . . . . . 1 . . . . . . 4 . . . . . Repair Stations 7 | . . . . . 1 . 1 . 2 . . . . 1 . 1 . . . 1 . Recycling Units 14 | . 2 . . . . . . . 3 . . . . 2 . 4 . 1 . 2 . Scanalyzers 1 | . . 1 . . . . . . . . . . . . . . . . . . . Garrison Access 11 | . . . 1 . 1 . . . 4 . . . . 1 . 2 . 1 . 1 . Total Hacks 243 | . 7 4 16 7 14 6 3 . 41 . 1 33 . 16 . 40 3 10 . 23 19 Successful 142 | . . 2 13 4 6 4 1 . 22 . 1 33 . 8 . 17 . 4 . 14 13 Failed 101 | . 7 2 3 3 8 2 2 . 19 . . . . 8 . 23 3 6 . 9 6 Catastrophic 23 | . . . . 1 . . 1 . 5 . . . . 4 . 7 2 1 . 1 1 Database Lockouts . | . . . . . . . . . . . . . . . . . . . . . . Manual 72 | . 3 . 10 . 2 . . . 18 . . . . 9 . 9 . 7 . 7 7 Terminals 116 | . 3 . 14 7 8 6 2 . 24 . 1 . . 8 . 8 3 4 . 9 19 Fabricators 16 | . . . . . . . . . 1 . . . . . . 15 . . . . . Repair Stations 19 | . . . . . 5 . 1 . 4 . . . . 1 . 2 . . . 6 . Recycling Units 41 | . 4 . . . . . . . 8 . . . . 5 . 12 . 5 . 7 . Scanalyzers 4 | . . 4 . . . . . . . . . . . . . . . . . . . Garrison Access 14 | . . . 2 . 1 . . . 4 . . . . 2 . 3 . 1 . 1 . Terminal Hacks 68 | . . . 7 4 1 4 1 . 4 . 1 33 . . . 1 . . . 3 9 Record 12 | . . . . . . . . . . . 1 11 . . . . . . . . . Part Schematic 12 | . . . . . . . . . . . . 12 . . . . . . . . . Robot Schematic 8 | . . . . . . . . . 1 . . 7 . . . . . . . . . Robot Analysis 4 | . . . 1 . . . 1 . . . . . . . . . . . . 1 1 Prototype ID Bank 12 | . . . 3 . 1 . . . 1 . . 3 . . . . . . . 2 2 Open Door 2 | . . . . 1 . 1 . . . . . . . . . . . . . . . Emergency Access Points 2 | . . . . 1 . 1 . . . . . . . . . . . . . . . Machine Index 1 | . . . 1 . . . . . . . . . . . . . . . . . . Terminal Index 1 | . . . . . . . . . . . . . . . . . . . . . 1 Unreport Threat 5 | . . . 2 . . . . . 1 . . . . . . . . . . . 2 Locate Traps 2 | . . . . . . . . . 1 . . . . . . . . . . . 1 Recall Assault 1 | . . . . . . . . . . . . . . . . . . . . . 1 Hauler Manifests 2 | . . . . . . . . . . . . . . . . 1 . . . . 1 Garrison Registry 2 | . . . . 1 . 1 . . . . . . . . . . . . . . . Security Stations 2 | . . . . 1 . 1 . . . . . . . . . . . . . . . Fabricator Hacks 6 | . . . . . . . . . 1 . . . . . . 5 . . . . . Network Status 3 | . . . . . . . . . 1 . . . . . . 2 . . . . . Load Schematic 3 | . . . . . . . . . . . . . . . . 3 . . . . . Repair Station Hacks 12 | . . . . . 2 . . . 4 . . . . . . 2 . . . 4 . Scan Component 7 | . . . . . 2 . . . 2 . . . . . . 1 . . . 2 . Repair 5 | . . . . . . . . . 2 . . . . . . 1 . . . 2 . Recycling Unit Hacks 8 | . . . . . . . . . 2 . . . . 1 . 2 . 1 . 2 . Retrieve Components 8 | . . . . . . . . . 2 . . . . 1 . 2 . 1 . 2 . Scanalyzer 2 | . . 2 . . . . . . . . . . . . . . . . . . . Insert Component 1 | . . 1 . . . . . . . . . . . . . . . . . . . Analyze 1 | . . 1 . . . . . . . . . . . . . . . . . . . Garrison Access Hacks 13 | . . . 1 . 1 . . . 4 . . . . 2 . 3 . 1 . 1 . Unlock Access 4 | . . . 1 . 1 . . . . . . . . . . 1 . 1 . . . Seal Access 7 | . . . . . . . . . 4 . . . . 1 . 1 . . . 1 . Coupler Status 2 | . . . . . . . . . . . . . . 1 . 1 . . . . . Unauthorized Hacks 32 | . . . 4 . 2 . . . 7 . . . . 5 . 4 . 2 . 4 4 Terminals 23 | . . . 4 . 2 . . . 6 . . . . 2 . 3 . 1 . 1 4 Track 1 | . . . . . 1 . . . . . . . . . . . . . . . . Botnet 18 | . . . 3 . 1 . . . 4 . . . . 2 . 3 . 1 . 1 3 Operators 4 | . . . 1 . . . . . 2 . . . . . . . . . . . 1 Fabricators . | . . . . . . . . . . . . . . . . . . . . . . Repair Stations . | . . . . . . . . . . . . . . . . . . . . . . Recycling Units 9 | . . . . . . . . . 1 . . . . 3 . 1 . 1 . 3 . Monitor 2 | . . . . . . . . . . . . . . 1 . . . . . 1 . Reject 1 | . . . . . . . . . . . . . . 1 . . . . . . . Recyclers 1 | . . . . . . . . . . . . . . . . . . . . 1 . Mask 5 | . . . . . . . . . 1 . . . . 1 . 1 . 1 . 1 . Scanalyzers . | . . . . . . . . . . . . . . . . . . . . . . Garrison Access . | . . . . . . . . . . . . . . . . . . . . . . Data Cores Recovered 2 | . . . . . 1 . . . . . . . . . . . . . . . 1 Used . | . . . . . . . . . . . . . . . . . . . . . . Hacking Detections 68 | . 4 1 4 2 4 2 2 . 13 . . . . 8 . 15 1 2 . 6 4 Full Trace Events 7 | . . . . 1 . 1 . . 1 . . . . . . 3 1 . . . . Feedback Events . | . . . . . . . . . . . . . . . . . . . . . . Feedback Blocked . | . . . . . . . . . . . . . . . . . . . . . . Robot Schematics Acquired 8 | . . . . . . . . . 1 . . 7 . . . . . . . . . Robots Built . | . . . . . . . . . . . . . . . . . . . . . . Authchips . | . . . . . . . . . . . . . . . . . . . . . . Time . | . . . . . . . . . . . . . . . . . . . . . . Total Robot Build Rating . | . . . . . . . . . . . . . . . . . . . . . . Part Schematics Acquired 13 | . . 1 . . . . . . . . . 12 . . . . . . . . . Parts Built . | . . . . . . . . . . . . . . . . . . . . . . Authchips . | . . . . . . . . . . . . . . . . . . . . . . Time . | . . . . . . . . . . . . . . . . . . . . . . Total Part Build Rating . | . . . . . . . . . . . . . . . . . . . . . . Parts Repaired 5 | . . . . . . . . . 2 . . . . . . 1 . . . 2 . Time 257 | . . . . . . . . . 112 . . . . . . 80 . . . 65 . Parts Recycled . | . . . . . . . . . . . . . . . . . . . . . . Recycled Matter . | . . . . . . . . . . . . . . . . . . . . . . Retrieved Matter . | . . . . . . . . . . . . . . . . . . . . . . Retrieved Components 20 | . . . . . . . . . 4 . . . . 2 . 4 . . . 10 . Parts Scanalyzed 1 | . . 1 . . . . . . . . . . . . . . . . . . . Part Schematics Acquired 1 | . . 1 . . . . . . . . . . . . . . . . . . . Parts Damaged . | . . . . . . . . . . . . . . . . . . . . . . Bothacking | -11 -10 -9 -8 -8 -8 -8 -7 -7 -7 -7 -7 -7 -6 -6 -6 -6 -6 -6 -6 -5 -5 ------------ Run | Yrd Mat Mat Mat Gar Mat Gar Fac Was Fac Low Low Dat Pro Fac Was Fac Gar Fac Gar Fac Ext Used RIF Installer 5 | . . . . 2 . 2 . . . . . . . . . . 1 . . . . Hotswap 1 | . . . . 1 . . . . . . . . . . . . . . . . . Code Merge 1 | . . . . . . . . . . . . . . . . . 1 . . . . Alert ID Control 1 | . . . . . . 1 . . . . . . . . . . . . . . . Program Shield 1 | . . . . . . 1 . . . . . . . . . . . . . . . Robots Hacked 17 | . . . . . . . . . . . . . . . . . 16 . 1 . . Non-combat . | . . . . . . . . . . . . . . . . . . . . . . Combat 17 | . . . . . . . . . . . . . . . . . 16 . 1 . . Robot Hacks Applied 17 | . . . . . . . . . . . . . . . . . 16 . 1 . . reboot_system 3 | . . . . . . . . . . . . . . . . . 3 . . . . overwrite_iff 14 | . . . . . . . . . . . . . . . . . 13 . 1 . . Relay Couplers Released 29 | . . . . 5 . 3 . . . . . . . . . 1 20 . . . . Machine Destruction 26 | . . . . 5 . . . . . . . . . . . 1 20 . . . . Programmers 3 | . . . . . . 3 . . . . . . . . . . . . . . . Attached 7 | . . . . . . . . . . . . . . . . . 6 . 1 . . Merged Code Value 31 | . . . . . . . . . . . . . . . . . 31 . . . . Fabnet Peak Effective % . | . . . . . . . . . . . . . . . . . . . . . . Robots Rewired 21 | . . . . . . . . . . . . . . . . . 3 . . . 18 Allies Hacked . | . . . . . . . . . . . . . . . . . . . . . . Hacks Repelled . | . . . . . . . . . . . . . . . . . . . . . . Allies | -11 -10 -9 -8 -8 -8 -8 -7 -7 -7 -7 -7 -7 -6 -6 -6 -6 -6 -6 -6 -5 -5 -------- Run | Yrd Mat Mat Mat Gar Mat Gar Fac Was Fac Low Low Dat Pro Fac Was Fac Gar Fac Gar Fac Ext Total Allies 66 | . . . . 1 . 2 . . . . . . . . 18 . 16 . 1 . 28 Largest Group 18 | . . . . 1 . 2 . . . . . . . . 18 15 3 . 1 . 18 Highest-Rated Group 656 | . . . . 31 . 70 . . . . . . . . 656 577 120 . 41 . 619 Highest-Rated Ally 159 | . . . . 31 . 39 . . . . . . . . 50 50 40 . 41 . 159 Total Orders . | . . . . . . . . . . . . . . . . . . . . . . Ally Attacks 551 | . . . . 4 . 27 . . . . . . . . 126 94 55 . 2 . 243 Total Damage 14775 | . . . . 41 . 479 . . . . . . . . 5309 3141 1419 . 69 . 4317 Kills 80 | . . . . . . 7 . . . . . . . . 8 17 9 . . . 39 Allies Corrupted 2 | . . . . . . . . . . . . . . . . . 1 . . . 1 Allies Melted 1 | . . . . . . . . . . 1 . . . . . . . . . . . Intel | -11 -10 -9 -8 -8 -8 -8 -7 -7 -7 -7 -7 -7 -6 -6 -6 -6 -6 -6 -6 -5 -5 ------- Run | Yrd Mat Mat Mat Gar Mat Gar Fac Was Fac Low Low Dat Pro Fac Was Fac Gar Fac Gar Fac Ext Active Infowar (turns) 6612 | . 305 235 640 . . . . . 1228 166 . . . . . 1156 1183 320 98 550 731 Optics 1507 | . . . . . . . . . . . . . . . . 120 1183 . . 204 . Sensors 3561 | . . . . . . . . . 1228 166 . . . . . 532 . 320 98 486 731 Terrain 886 | . . . . . . . . . . . . . . . . 886 . . . . . Structural 1180 | . 305 235 640 . . . . . . . . . . . . . . . . . . Machine Analysis 380 | . . . . . . . . . . . . . . . . 270 110 . . . . Jamming 1 | . . . . . . . . . . . . . . . . . . . . 1 . Robot Analysis Total 4 | . . . 1 . . . 1 . . . . . . . . . . . . 1 1 Derelict Logs Recovered 3 | . . . . . . . . . . . 3 . . . . . . . . . . Drone Launches . | . . . . . . . . . . . . . . . . . . . . . . Drone Recoveries . | . . . . . . . . . . . . . . . . . . . . . . Exploration | -11 -10 -9 -8 -8 -8 -8 -7 -7 -7 -7 -7 -7 -6 -6 -6 -6 -6 -6 -6 -5 -5 ------------- Run | Yrd Mat Mat Mat Gar Mat Gar Fac Was Fac Low Low Dat Pro Fac Was Fac Gar Fac Gar Fac Ext Turns Passed 15958 | 71 731 370 734 1794 421 515 49 130 1658 168 210 32 98 267 203 1289 1624 332 140 1799 3323 Spaces Moved 13723 | 35 419 192 390 1211 256 337 78 185 2414 422 465 93 288 554 335 2000 822 224 117 1014 1872 Core 108 | 9 . . . . . . . . . . . . . . . . . . 56 37 6 Treads 1488 | . . . . . . . . . . . . . . . . . 345 . . 11 1132 Legs 3452 | 26 419 192 390 1211 256 337 . . . . . . . . . . 201 224 56 139 1 Wheels 1560 | . . . . . . . . . . . . . . . . . . . . 827 733 Hover 7110 | . . . . . . . 78 185 2414 422 465 93 288 554 335 2000 276 . . . . Flight 5 | . . . . . . . . . . . . . . . . . . . 5 . . Fastest Speed 34 | 50 120 120 120 110 120 120 48 48 34 34 34 34 34 34 34 34 40 120 35 50 50 Average Speed 85 | 104 140 120 120 119 120 120 48 48 45 34 34 34 34 34 34 41 142 120 84 124 143 Slowest Speed 360 | 190 190 120 190 190 120 120 48 48 102 34 94 34 34 34 34 176 360 120 260 260 330 Overloaded Moves . | . . . . . . . . . . . . . . . . . . . . . . Propulsion Burnouts . | . . . . . . . . . . . . . . . . . . . . . . Robots Hopped 1 | . . . . . . . . . . . . . . . . . . . 1 . . Potential Cave-ins 7 | . . . . . . . . . . . . . . . . 7 . . . . . Cave-ins Triggered 2 | . . . . . . . . . . . . . . . . 2 . . . . . Exploration Rate (%) 49 | 4 76 22 47 90 26 57 3 83 62 59 54 75 55 17 96 49 59 9 27 24 98 Regions Visited 21 Branch Regions 5 Pre-discovered Areas 1 | . . . . . . . . . . . . 1 . . . . . . . . . Known Exits Taken 10 | . . . 1 . 1 . . . 1 1 1 1 1 . . 1 . 1 . 1 . Unknown Exits Taken 3 | 1 1 1 . . . . . . . . . . . . . . . . . . . Scrap Searched 5 | . . . . . . . . . . 1 2 . 2 . . . . . . . . Spaces Dug 29 | . . . 1 3 . . . . 5 1 . . . . . 17 . 1 . . 1 Terrain Destroyed 262 | . . . 1 39 7 . . . 24 35 . . . . . 17 . 1 15 61 62 Melee 27 | . . . . 3 . . . . 5 1 . . . . . 17 . . . . 1 Projectile 87 | . . . 1 . 7 . . . . . . . . . . . . 1 . 17 61 AOE 148 | . . . . 36 . . . . 19 34 . . . . . . . . 15 44 . Terrain Rammed . | . . . . . . . . . . . . . . . . . . . . . . Walls Destroyed . | . . . . . . . . . . . . . . . . . . . . . . Machines Disabled . | . . . . . . . . . . . . . . . . . . . . . . Actions | -11 -10 -9 -8 -8 -8 -8 -7 -7 -7 -7 -7 -7 -6 -6 -6 -6 -6 -6 -6 -5 -5 --------- Run | Yrd Mat Mat Mat Gar Mat Gar Fac Was Fac Low Low Dat Pro Fac Was Fac Gar Fac Gar Fac Ext Total 16403 | 52 495 278 552 1399 327 401 90 224 2837 436 508 92 287 594 397 2300 1104 259 151 1342 2278 Wait 1141 | . 25 22 80 54 28 11 3 37 257 6 29 . . 13 40 179 58 6 26 85 182 Move 13702 | 34 418 191 390 1209 256 335 78 184 2413 421 464 92 287 554 334 1999 820 224 114 1013 1872 Hop 1 | . . . . . . . . . . . . . . . . . . . 1 . . Pick Up 170 | 4 11 15 7 12 5 8 . 1 28 . 1 . . . 2 11 20 1 . 30 14 Fast Attach 85 | 5 2 1 . 6 1 . . 2 5 1 2 . . 2 . 14 9 2 1 25 7 Attach 71 | 1 . 2 4 9 . . 4 . 7 . . . . . . 7 11 . 2 15 9 Detach 5 | . 1 . . . . . . . . . . . . . . . 1 . . 3 . Swap 216 | 1 1 5 12 12 9 8 . . 41 2 7 . . 7 6 16 39 4 4 19 23 Drop 135 | . 3 13 6 7 7 13 4 . 25 . 3 . . 3 4 6 13 . . 13 15 Fire 760 | 7 34 29 53 78 21 26 1 . 51 5 2 . . 15 11 34 129 17 3 117 127 Melee 69 | . . . . 8 . . . . 10 1 . . . . . 34 . 5 . . 11 Ram . | . . . . . . . . . . . . . . . . . . . . . . Kick 22 | . . . . . . . . . . . . . . . . . . . . 22 . Crush . | . . . . . . . . . . . . . . . . . . . . . . Escape Stasis 16 | . . . . 4 . . . . . . . . . . . . 4 . . . 8 Rewire 2 | . . . . . . . . . . . . . . . . . . . . . 2 Trap . | . . . . . . . . . . . . . . . . . . . . . . Miscellaneous 8 | . . . . . . . . . . . . . . . . . . . . . 8 Route ------- -11/Scrapyard -10/Materials (discovered 3 exits: *Mat x2 / [*Min]) -9/Materials -8/Materials (discovered 4 exits: *Fac / [*Sto x2] / Gar) -8/Garrison (discovered 3 exits: *Mat x3) -8/Materials (discovered 2 exits: [*Sto] / Gar) -8/Garrison (discovered 3 exits: *Fac x3) -7/Factory -7/Waste -7/Factory (discovered 3 exits: *Fac x2 / *Low) -7/Lower Caves -7/Lower Caves -7/Data Miner -6/Proximity Caves -6/Factory -6/Waste -6/Factory (discovered 6 exits: *Fac x3 / *Low x2 / Gar) -6/Garrison (discovered 3 exits: *Fac x3) -6/Factory -6/Garrison -5/Factory -5/Extension (discovered 2 exits: *Fac / *Cet) History --------- Turn | Location | Event 9 | -11/Scrapyard | Discovered new exit (range 16) 72 | -11/Scrapyard | Entered Materials 128 | -10/Materials | Discovered new exit (range 13) 313 | -10/Materials | Build established: Mutant 319 | -10/Materials | Discovered new exit (range 3) 572 | -10/Materials | Derelicts attacked the area 780 | -10/Materials | Discovered new exit (range 13) 803 | -10/Materials | Entered another Materials area 803 | -9/Materials | Evolved 2 slots: Propulsion x2 1072 | -9/Materials | Discovered new exit (range 16) 1173 | -9/Materials | Entered another Materials area 1173 | -8/Materials | Evolved 2 slots: Utility x2 1319 | -8/Materials | Discovered new exit (range 10) 1459 | -8/Materials | Build established: Scavenger-Mutant 1475 | -8/Materials | Discovered new exit (range 11) 1539 | -8/Materials | Discovered new exit (range 13) 1832 | -8/Materials | Garrison activated, responded to threat 1907 | -8/Materials | Identified exit to Garrison 1907 | -8/Materials | Entered Garrison 1950 | -8/Garrison | Learned Materials security intel 2171 | -8/Garrison | Triggered checkpoint 2229 | -8/Garrison | Triggered checkpoint 2256 | -8/Garrison | Garrison Relay disabled 2321 | -8/Garrison | Discovered new exit (range 15) 2410 | -8/Garrison | Lost 5 parts (3n1u1w) 2519 | -8/Garrison | Triggered checkpoint 2618 | -8/Garrison | Discovered new exit (range 11) 2659 | -8/Garrison | Triggered checkpoint 2711 | -8/Garrison | Installed Relay Interface Framework 2806 | -8/Garrison | Rescued a captive Derelict 3095 | -8/Garrison | Triggered checkpoint 3150 | -8/Garrison | Lost 5 parts (2n1u2w) 3216 | -8/Garrison | Discovered new exit (range 14) 3220 | -8/Garrison | Triggered checkpoint 3236 | -8/Garrison | Discovered new exit (range 93) 3236 | -8/Garrison | Discovered new exit (range 60) 3236 | -8/Garrison | Discovered new exit (range 17) 3318 | -8/Garrison | Expanded RIF knowledge: Hotswap 3699 | -8/Garrison | Identified exit to Materials 3701 | -8/Garrison | Entered Materials 4027 | -8/Materials | Core integrity fell below 50% 4111 | -8/Materials | Discovered new exit (range 16) 4122 | -8/Materials | Identified exit to Garrison 4122 | -8/Materials | Entered Garrison 4170 | -8/Garrison | Expanded RIF knowledge: Program Shield 4185 | -8/Garrison | Rescued a captive Derelict 4193 | -8/Garrison | Rescued a captive Derelict 4209 | -8/Garrison | Learned Factory security intel 4226 | -8/Garrison | Triggered checkpoint 4248 | -8/Garrison | Discovered new exit (range 44) 4248 | -8/Garrison | Discovered new exit (range 89) 4248 | -8/Garrison | Discovered new exit (range 57) 4412 | -8/Garrison | Triggered checkpoint 4540 | -8/Garrison | Triggered checkpoint 4549 | -8/Garrison | Build established: Mutant 4571 | -8/Garrison | Expanded RIF knowledge: Alert ID Control 4637 | -8/Garrison | Entered Factory 4637 | -7/Factory | Evolved 2 slots: Propulsion x1, Utility x1 4686 | -7/Factory | Sucked down chute 4686 | -7/Factory | Entered Waste 4701 | -7/Waste | EMP discharged 4701 | -7/Waste | Spotted C-40 Crusher 4704 | -7/Waste | Spotted C-40 Crusher 4737 | -7/Waste | Spotted C-40 Crusher 4737 | -7/Waste | Spotted C-40 Crusher 4792 | -7/Waste | Spotted C-40 Crusher 4798 | -7/Waste | Spotted C-40 Crusher 4801 | -7/Waste | EMP discharged 4801 | -7/Waste | System corruption reached 10% 4809 | -7/Waste | Discovered new exit (range 16) 4816 | -7/Waste | Entered Factory 4958 | -7/Factory | Build established: Scavenger-Mutant 5327 | -7/Factory | Discovered new exit (range 15) 5334 | -7/Factory | Identified exit to Factory 5471 | -7/Factory | Repaired Cld. Ion Engine? 5598 | -7/Factory | Discovered exit to Factory (range 16) 6000 | -7/Factory | Repaired Broken Gravmag System? 6253 | -7/Factory | Build established: Mutant 6449 | -7/Factory | Allied Derelicts emerged from ambush trap array 6449 | -7/Factory | Discovered new exit (range 10) 6452 | -7/Factory | Identified exit to Lower Caves 6474 | -7/Factory | Entered Lower Caves 6558 | -7/Lower Caves | Encountered a Warlord checkpoint 6566 | -7/Lower Caves | Spotted B-75 Beast 6582 | -7/Lower Caves | Found Alien Artifact 6582 | -7/Lower Caves | Identified Core Expander 6582 | -7/Lower Caves | Installed Core Expander, added new Utility slot 6623 | -7/Lower Caves | Discovered new exit (range 14) 6642 | -7/Lower Caves | Identified exit to Lower Caves 6642 | -7/Lower Caves | Entered another Lower Caves area 6644 | -7/Lower Caves | Learned Factory security intel 6691 | -7/Lower Caves | Learned Factory trap positions 6733 | -7/Lower Caves | Encountered a Warlord checkpoint 6735 | -7/Lower Caves | Learned Factory garrison access intel 6848 | -7/Lower Caves | Discovered new exit (range 12) 6851 | -7/Lower Caves | Identified exit to Data Miner 6852 | -7/Lower Caves | Entered Data Miner 6852 | -7/Data Miner | Discovered new exit (range 6) 6859 | -7/Data Miner | Met Data Miner 6870 | -7/Data Miner | Learned location of Section 7 (-2) 6870 | -7/Data Miner | Acquired the access code to Warlord's prototype stash 6872 | -7/Data Miner | Lost 3 allies 6875 | -7/Data Miner | Received God Mode back door access code from Data Miner 6883 | -7/Data Miner | Identified exit to Proximity Caves 6884 | -7/Data Miner | Entered Proximity Caves 6980 | -6/Proximity Caves | Discovered exit to Factory (range 7) 6982 | -6/Proximity Caves | Entered Factory 6982 | -6/Factory | Evolved 2 slots: Utility x2 6983 | -6/Factory | Loaded intel: 123 trap records 6985 | -6/Factory | Loaded intel: 4 garrison access locations 7249 | -6/Factory | Manually triggered Chute Trap 7249 | -6/Factory | Sucked down chute 7249 | -6/Factory | Entered Waste 7259 | -6/Waste | Warlord forces began an assault 7281 | -6/Waste | Spotted C-40 Crusher 7288 | -6/Waste | Allies destroyed C-40 Crusher 7303 | -6/Waste | Spotted C-40 Crusher 7309 | -6/Waste | Spotted C-40 Crusher 7309 | -6/Waste | Allies destroyed C-40 Crusher 7315 | -6/Waste | Spotted C-40 Crusher 7315 | -6/Waste | Destroyed C-40 Crusher 7316 | -6/Waste | Spotted C-40 Crusher 7320 | -6/Waste | Spotted C-40 Crusher 7326 | -6/Waste | Allies destroyed C-40 Crusher 7333 | -6/Waste | Allies destroyed C-40 Crusher 7335 | -6/Waste | Allies destroyed C-40 Crusher 7360 | -6/Waste | Lost 3 allies 7403 | -6/Waste | Discovered new exit (range 11) 7413 | -6/Waste | Identified exit to Factory 7452 | -6/Waste | Entered Factory 7452 | -6/Factory | Accompanied by 15 allies 7515 | -6/Factory | Discovered new exit (range 16) 7634 | -6/Factory | Identified exit to Factory 7677 | -6/Factory | Spotted B-75 Beast 7691 | -6/Factory | Destroyed B-75 Beast 7713 | -6/Factory | Discovered exit to Factory (range 15) 8070 | -6/Factory | Repaired F-cell Engine 8087 | -6/Factory | Build established: Scout 8152 | -6/Factory | First assault squad dispatched 8176 | -6/Factory | Incoming assault squad redirected 8179 | -6/Factory | Lost 11 allies 8434 | -6/Factory | Crushed by falling debris 8449 | -6/Factory | Build established: Mutant 8465 | -6/Factory | Lost 5 parts (2n3u) 8480 | -6/Factory | Discovered new exit (range 3) 8480 | -6/Factory | Identified exit to Lower Caves 8531 | -6/Factory | Incoming assault squad redirected 8558 | -6/Factory | Incoming investigation squad redirected 8572 | -6/Factory | Crushed by falling debris 8572 | -6/Factory | System corruption reached 10% 8603 | -6/Factory | Lost 3 parts (1n2u) 8664 | -6/Factory | Discovered exit to Lower Caves (range 6) 8735 | -6/Factory | Discovered exit to Factory (range 18) 8739 | -6/Factory | Identified exit to Garrison 8741 | -6/Factory | Entered Garrison 8772 | -6/Garrison | Expanded RIF knowledge: Code Merge 8785 | -6/Garrison | Triggered checkpoint 8847 | -6/Garrison | Garrison Relay disabled 8893 | -6/Garrison | Triggered checkpoint 8949 | -6/Garrison | Triggered checkpoint 9013 | -6/Garrison | Lost 3 allies 9028 | -6/Garrison | Spotted B-75 Beast 9041 | -6/Garrison | Lost 5 parts (4n1w) 9075 | -6/Garrison | Destroyed B-75 Beast 9102 | -6/Garrison | Lost 4 parts (2n2w) 9213 | -6/Garrison | Build established: Bothacker-Mutant 9439 | -6/Garrison | Garrison Relay disabled 9455 | -6/Garrison | Spotted B-75 Beast 9523 | -6/Garrison | Discovered new exit (range 10) 9643 | -6/Garrison | Triggered checkpoint 9775 | -6/Garrison | Build established: Botlord-Mutant 9815 | -6/Garrison | Triggered checkpoint 9822 | -6/Garrison | Core integrity fell below 50% 9951 | -6/Garrison | Garrison Relay disabled 10088 | -6/Garrison | Discovered new exit (range 11) 10135 | -6/Garrison | Triggered checkpoint 10283 | -6/Garrison | Lost 3 allies 10317 | -6/Garrison | Garrison Relay disabled 10354 | -6/Garrison | Discovered new exit (range 3) 10365 | -6/Garrison | Entered Factory 10555 | -6/Factory | Build established: Bothacker-Mutant 10697 | -6/Factory | Identified exit to Garrison 10697 | -6/Factory | Entered Garrison 10739 | -6/Garrison | Triggered checkpoint 10806 | -6/Garrison | Released all parts (8) 10810 | -6/Garrison | Core integrity fell below 20% 10830 | -6/Garrison | Discovered exit to Factory (range 13) 10837 | -6/Garrison | Entered Factory 10837 | -5/Factory | Evolved 2 slots: Propulsion x1, Weapon x1 10843 | -5/Factory | Lost 9 parts (1p4n1u3w) 11111 | -5/Factory | Spotted B-75 Beast 11144 | -5/Factory | Destroyed B-75 Beast 11158 | -5/Factory | Lost 3 parts (1p1n1w) 11193 | -5/Factory | Found Hvy. Insulated Plating 11195 | -5/Factory | Found Hvy. Insulated Plating 11197 | -5/Factory | Found Hvy. Insulated Plating 11269 | -5/Factory | Lost 6 parts (1p1n4w) 11597 | -5/Factory | Repaired Multireflex Exoskeleton 11623 | -5/Factory | Repaired Hvy. Insulated Plating 11772 | -5/Factory | Build established: Scavenger-Tank 11845 | -5/Factory | Core integrity fell below 50% 11897 | -5/Factory | Lost 5 parts (1p3u1w) 12254 | -5/Factory | System corruption reached 10% 12597 | -5/Factory | Discovered new exit (range 5) 12607 | -5/Factory | Identified exit to Extension 12636 | -5/Factory | Entered Extension 12701 | -5/Extension | Build established: Hacker-Skirmisher 12806 | -5/Extension | Spotted B-75 Beast 13340 | -5/Extension | Build established: Hacker-Gunner 13811 | -5/Extension | Disrupted transfer network 13889 | -5/Extension | Destroyed B-75 Beast 13912 | -5/Extension | Spotted B-75 Beast 13927 | -5/Extension | Allies destroyed B-75 Beast 14024 | -5/Extension | Rescued a captive Derelict 14026 | -5/Extension | Rescued a captive Derelict 14108 | -5/Extension | Rescued a captive Derelict 14110 | -5/Extension | Rescued a captive Derelict 14115 | -5/Extension | Rescued a captive Derelict 14116 | -5/Extension | Rescued a captive Derelict 14136 | -5/Extension | First assault squad dispatched 14205 | -5/Extension | Rescued a captive Derelict 14206 | -5/Extension | Rescued a captive Derelict 14230 | -5/Extension | Rescued a captive Derelict 14479 | -5/Extension | Incoming assault squad redirected 14831 | -5/Extension | Build established: Commander-Mutant 15103 | -5/Extension | Rescued A7 15212 | -5/Extension | Discovered new exit (range 10) 15214 | -5/Extension | Discovered new exit (range 6) 15225 | -5/Extension | Identified exit to Cetus 15230 | -5/Extension | Identified exit to Factory 15315 | -5/Extension | Build established: Commander-Gunner 15666 | -5/Extension | Incoming assault squad redirected 15954 | -5/Extension | Incoming assault squad redirected 15955 | -5/Extension | Incoming assault squad redirected 15956 | -5/Extension | Released all parts (13) 15958 | -5/Extension | Core integrity fell below 20% 15959 | -5/Extension | Destroyed by G-50 Soldier with Heavy Laser Last Messages --------------- 15956_ Imp. Treads destroyed. 15956_ Released Arm. Leg. 15956_ Released Core Analyzer. 15956_ Released Imp. Target Analyzer. 15956_ Released Imp. Signal Interpreter. 15956_ Released Lrg. Storage Unit. 15956_ Released Adv. Hacking Suite. 15956_ Released KE Penetrator. 15956_ Released Adv. System Shield. 15956_ Released Arm. Leg. 15956_ Released Adv. Heat Sink. 15956_ Released Neutrino Core. 15956_ Released KE Penetrator. 15957_ The unstable cave ceiling collapses. 15957_ P-70 Sage resets G-50 Soldier, system corruption cleaned. 15957_ Knocked back. 15958_ The unstable cave ceiling collapses. 15958_ D-63 Destroyer destroyed. 15959_ The unstable cave ceiling collapses. Map ----- +----------------------------------------------------+ | ??# ^ =%*** ######### % #????? | | ??################# #????? | | ??????????????????# ######### #????? | | ??????????????????#####???????# #????? | | ???????????????????###????????#%" #????? | | ??????????????????????????????#" #????? | | ??????????????????????????????# #????? | | ??????????????????????????????# #????? | | ??????????????????????????????# #????? | | ??????????????????????????????# #????? | | ??????????????????????????????# #????? | | ??????????????????????????????#### #????? | | ?????????????????????????????????# #????? | | ?????????????????????????????????# #????? | | ?????????????????????????????????# #????? | | ?????????????????????????????????# #????? | | ??????????????#####??????????????# #????? | | ????????????### ######????????# #????? | | ????????????# # # ###??????#*#????? | | ????????????# ######## ####?? | | ????????????# # "" "" #?? | | ############# # [ ## " ### | | ==! b = g=% % !# | | %* b|=! gm [ !*] > # | | ! [! *b =[ d =%!% !%% ! # | | [%%!=*= = * @gg%* ! % ;## | | %!!*!%=%[ b g p% % !# | | ############### ;g * ! < # | | ??????????##### # ### ! # | | ??????????????### #####?###" #### | | ????????????????#######????????#" #??? | | ???????????????????????????????#"""""#??? | | ???????????????????????????????#######??? | | ????????????????????????????????????????? | | ????????????????????????????????????????? | | | | | | | | | | | | | | | | | | | | | | | | | | | | | | | +----------------------------------------------------+ Best States ------------- Heat Dissipation 78 Energy Generation 21 Energy Capacity 700 Matter Stores 300 Matter Capacity 300 Sight Range 22 Robot Scan Range 16 Terrain Scan Range 20 Terrain Scan Density 110 Power Amplification 40 EM Shielding 3 Armor Coverage 1200 Resistance: KI 20 Resistance: EM 30 Weapon Cycling 20 Evasion (%) 68 Targeting Accuracy 8 Melee Accuracy 12 Target Analysis 6 Core Analysis 6 Recoil Reduction 4 Offensive Hacking 24 Defensive Hacking 14 Relay Coupler Types 3 Relay Coupler Value 78 Item Schematics ----------------- Hcp. Storage Unit | -9/Materials | Scanalyzed Lgt. Regenerative Plating | -7/Data Miner | Free Cld. Cesium-ion Thruster | -7/Data Miner | Free Gravity Neutralizer | -7/Data Miner | Free Ion Burst Cannon | -7/Data Miner | Free Linear Gravjet | -7/Data Miner | Free Combat Drone Bay | -7/Data Miner | Free Imp. Thermal Shield | -7/Data Miner | Free Imp. Arc Projector | -7/Data Miner | Free Arm. Leg | -7/Data Miner | Free Hyp. Gauss Cannon | -7/Data Miner | Free Shield Leg | -7/Data Miner | Free Graphene Brace | -7/Data Miner | Free Robot Schematics ------------------ M-28 Smith | -7/Factory | Hacked O-24 Administrator | -7/Data Miner | Free X-57 Shotgunner | -7/Data Miner | Free R-10 Processor | -7/Data Miner | Free W-25 Informer | -7/Data Miner | Free H-66 Slayer | -7/Data Miner | Free P-70 Sage | -7/Data Miner | Free S-27 Virus | -7/Data Miner | Free Fabricated ------------ Nothing Repaired ---------- Cld. Ion Engine | 4% | -7/Factory Gravmag System | 40% | -7/Factory | Broken F-cell Engine | 8% | -6/Factory Multireflex Exoskeleton | 9% | -5/Factory Hvy. Insulated Plating | 4% | -5/Factory Alien Tech Used ----------------- Core Expander Achievements -------------- Streaker Challenges ------------ None Game ------ Seed ProjectileCarbideAnalyzer Manual? 0 Play Time 02:46:30 Cumulative 312.2 hours Start 2025.06.30 @ 11:42:38 End 2025.06.30 @ 14:45:00 Sessions 1 Manual Loads 0 Difficulty Rogue Special Mode None Game No. 139 Rogue 125 Adventurer 14 Explorer 0 Win Type - Total 18 Types 15/0/1/1/0/0/0/0/1/0 Lore% 62 Gallery% 72 Achievement% 67 Wizard Run 0 Options --------- Layout 1 ASCII 0 Keyboard 0 Movement Arrows Keybinds 0 Fullscreen 1 Font 32/SmallcapsGlow Map View 50x40 Zoom Use 0% Tactical HUD 1 Map Filters NONE Filters NONE Steam 1 RUN: eeb3f54f-947b-4bcf-9a72-bc0a87a289a8